{"text_format":"1","workbook":"xlsx","n_sheets":1,"sheets":["Tabelle1"],"not_rendered":{"charts":0,"images":0,"macros":1,"external_links":0,"defined_names":5,"comments":0,"pivot_tables":0},"unopened":[],"bounds":{"document_bytes":16777216,"sheet_cells":100000,"rows_first":2000,"rows_last":500,"rows_between":2000,"halvings":0,"cell_chars":16384,"cell_head_chars":4096},"cells_cut":0,"cells_raw":0,"read":"whole","date_system":"1900"}

{"sheet":"Tabelle1","index":0,"n_rows":22,"n_cols":15,"rows_kept":22,"cut":false,"hidden":false,"merged":[[26,0,26,1]]}
["Spielernamen (Reihenfolge wird ausgelost)","Anfangswert um die Reihenfolge festlegen zu können",null,"Team 1","Punktevergabe nach dem Spiel","Team 1","Punktevergabe nach dem Spiel","gegen","Team 2","Punktevergabe nach dem Spiel","Team 2","Punktevergabe nach dem Spiel","Ergebnis per Hand – nur Statistik",null,"Namen ordnen sich wieder neu, nach den erreichten Punkten und werden auf Tabelle 2 übertragen"]
[]
["Henry",0.2,null,{"$f":"INDEX($A$3:$A$22,MATCH(LARGE($B$3:$B$22,1),$B$3:$B$22,0))","v":"Henry"},1.2,{"$f":"INDEX($A$3:$A$22,MATCH(SMALL($B$3:$B$22,1),$B$3:$B$22,0))","v":"Manfred"},0.01,null,{"$f":"INDEX($A$3:$A$22,MATCH(LARGE($B$3:$B$22,2),$B$3:$B$22,0))","v":"Kurt"},1.19,{"$f":"INDEX($A$3:$A$22,MATCH(SMALL($B$3:$B$22,2),$B$3:$B$22,0))","v":"Sören"},0.02,"21 zu 12",null,{"$f":"IFERROR(INDEX($I$3:$I$7,MATCH(LARGE($D$3:$L$7,ROW()-2),$J$3:$J$7,0)),\nIFERROR(INDEX($K$3:$K$7,MATCH(LARGE($D$3:$L$7,ROW()-2),$L$3:$L$7,0)),\nIFERROR(INDEX($F$3:$F$7,MATCH(LARGE($D$3:$L$7,ROW()-2),$G$3:$G$7,0)),\nIFERROR(INDEX($D$3:$D$7,MATCH(LARGE($D$3:$L$7,ROW()-2),$E$3:$E$7,0)),\"Nicht gefunden\"))))","v":"Jens"}]
["Kurt",0.19,null,{"$f":"INDEX($A$3:$A$22,MATCH(LARGE($B$3:$B$22,3),$B$3:$B$22,0))","v":"Franz"},1.18,{"$f":"INDEX($A$3:$A$22,MATCH(SMALL($B$3:$B$22,3),$B$3:$B$22,0))","v":"Christoph"},0.03,null,{"$f":"INDEX($A$3:$A$22,MATCH(LARGE($B$3:$B$22,4),$B$3:$B$22,0))","v":"Günther"},2.17,{"$f":"INDEX($A$3:$A$22,MATCH(SMALL($B$3:$B$22,4),$B$3:$B$22,0))","v":"Rudi"},0.04,"6 zu 21",null,{"$f":"IFERROR(INDEX($I$3:$I$7,MATCH(LARGE($D$3:$L$7,ROW()-2),$J$3:$J$7,0)),\nIFERROR(INDEX($K$3:$K$7,MATCH(LARGE($D$3:$L$7,ROW()-2),$L$3:$L$7,0)),\nIFERROR(INDEX($F$3:$F$7,MATCH(LARGE($D$3:$L$7,ROW()-2),$G$3:$G$7,0)),\nIFERROR(INDEX($D$3:$D$7,MATCH(LARGE($D$3:$L$7,ROW()-2),$E$3:$E$7,0)),\"Nicht gefunden\"))))","v":"Henrik"}]
["Franz",0.18,null,{"$f":"INDEX($A$3:$A$22,MATCH(LARGE($B$3:$B$22,5),$B$3:$B$22,0))","v":"Bernd"},1.1599999999999999,{"$f":"INDEX($A$3:$A$22,MATCH(SMALL($B$3:$B$22,5),$B$3:$B$22,0))","v":"Peter"},0.05,null,{"$f":"INDEX($A$3:$A$22,MATCH(LARGE($B$3:$B$22,6),$B$3:$B$22,0))","v":"Ralf"},3.15,{"$f":"INDEX($A$3:$A$22,MATCH(SMALL($B$3:$B$22,6),$B$3:$B$22,0))","v":"Marec"},0.06,"19 zu 21",null,"Ralf"]
["Günther",0.17,null,{"$f":"INDEX($A$3:$A$22,MATCH(LARGE($B$3:$B$22,7),$B$3:$B$22,0))","v":"Georg"},1.1400000000000001,{"$f":"INDEX($A$3:$A$22,MATCH(SMALL($B$3:$B$22,7),$B$3:$B$22,0))","v":"Mario"},7.0000000000000007E-2,null,{"$f":"INDEX($A$3:$A$22,MATCH(LARGE($B$3:$B$22,8),$B$3:$B$22,0))","v":"Henrik"},4.13,{"$f":"INDEX($A$3:$A$22,MATCH(SMALL($B$3:$B$22,8),$B$3:$B$22,0))","v":"Timo"},0.08,"8 zu 21",null,"Günther"]
["Bernd",0.16,null,{"$f":"INDEX($A$3:$A$22,MATCH(LARGE($B$3:$B$22,9),$B$3:$B$22,0))","v":"Wolfgang"},1.1200000000000001,{"$f":"INDEX($A$3:$A$22,MATCH(SMALL($B$3:$B$22,9),$B$3:$B$22,0))","v":"Willi"},0.09,null,{"$f":"INDEX($A$3:$A$22,MATCH(LARGE($B$3:$B$22,10),$B$3:$B$22,0))","v":"Jens"},5.1100000000000003,{"$f":"INDEX($A$3:$A$22,MATCH(SMALL($B$3:$B$22,10),$B$3:$B$22,0))","v":"Dieter"},0.1,"21 zu 19",null,"Henry"]
["Ralf",0.15,null,null,null,null,null,null,null,null,null,null,null,null,"Kurt"]
["Georg",0.14000000000000001,null,null,null,null,null,null,null,null,null,null,null,null,"Franz"]
["Henrik",0.13,null,null,null,null,null,null,null,null,null,null,null,null,"Bernd"]
["Wolfgang",0.12,null,null,null,null,null,null,null,null,null,null,null,null,"Georg"]
["Jens",0.11,null,null,null,null,null,null,null,null,null,null,null,null,"Wolfgang"]
["Dieter",0.1,null,null,null,null,null,null,null,null,null,null,null,null,"Dieter"]
["Willi",0.09,null,null,null,null,null,null,null,null,null,null,null,null,"Willi"]
["Timo",0.08,null,null,null,null,null,null,null,null,null,null,null,null,"Timo"]
["Mario",7.0000000000000007E-2,null,null,null,null,null,null,null,null,null,null,null,null,"Mario"]
["Marec",0.06,null,null,null,null,null,null,null,null,null,null,null,null,"Marec"]
["Peter",0.05,null,null,null,null,null,null,null,null,null,null,null,null,"Peter"]
["Rudi",0.04,null,null,null,null,null,null,null,null,null,null,null,null,"Rudi"]
["Christoph",0.03,null,null,null,null,null,null,null,null,null,null,null,null,"Christoph"]
["Sören",0.02,null,null,null,null,null,null,null,null,null,null,null,null,"Sören"]
["Manfred",0.01,null,null,null,null,null,null,null,null,null,null,null,null,"Manfred"]